[Event "55th Biel Festival MTO 2022"]
[Site "Biel"]
[Date "2022.07.18"]
[Round "5.29"]
[White "Tanmay Chopra"]
[Black "Kornitzky Tino"]
[Result "1-0"]
[ECO "D37"]
[WhiteElo "2322"]
[BlackElo "2141"]
[Annotator "TA"]
[PlyCount "63"]
[EventDate "2022.07.13"]
[EventType "swiss"]
[EventCountry "SUI"]
[SourceTitle "playchess.com"]
[Source "ChessBase"]
[SourceQuality "1"]
[TimeControl "40/5400+30:1800+30"]

{[%evp 11,63,22,18,13,13,17,17,17,14,6,8,5,19,22,22,13,64,21,51,55,80,81,88,70,97,66,104,79,93,92,162,160,181,171,240,243,235,214,218,210,297,298,381,358,421,413,29975,29969,29986,29987,29996,29997,29998,29999]} 1. d4 {[%emt 0:00:30]} Nf6 {[%emt 0:04:24]} 2. c4 {[%emt 0:00:05]} e6 {[%emt 0:00:09]} 3. Nf3 {[%emt 0:00:05]} d5 {[%emt 0:00:07]} 4. Nc3 {[%emt 0:00:05]} Nbd7 {[%emt 0:00:11][%cal Bb8d7,Bd7b6,Bb6c4][%mdl 32]} 5. Bf4 {[%emt 0:00:16]} dxc4 {[%emt 0:00:10]} 6. e3 {[%emt 0:00:07]} Nb6 {[%emt 0:00:08] [#]} 7. Bxc4 $1 {[%emt 0:00:13][%mdl 64] Decoy. D37: Queen's Gambit Declined: 5 Bf4.} Nxc4 {[%emt 0:00:09]} 8. Qa4+ {[%emt 0:00:05]} c6 {[%emt 0:00:18]} 9. Qxc4 {[%emt 0:00:06] The position is equal.} Nd5 {[%emt 0:00:06]} 10. Bg3 {[%emt 0:00:07]} Qb6 {[%emt 0:00:08]} 11. Qe2 {[%emt 0:00:17]} Nxc3 {[%emt 0:00:30]} 12. bxc3 {[%emt 0:00:07]} Qb5 {[%emt 0:00:05]} 13. a4 {[%emt 0:00:20]} Qxe2+ {[%emt 0:04:24]} 14. Kxe2 {[%emt 0:00:04] [#]} f6 $146 {[%emt 0:02:10]} ({Predecessor:} 14... Be7 15. Rhb1 f6 16. a5 Kf7 17. Nd2 c5 18. Ne4 cxd4 19. cxd4 Rd8 20. f3 Ke8 {1-0 (52) Faizrakhmanov,R (2450)-Goganov,A (2602) Sochi 2020}) 15. a5 {[%emt 0:00:46]} Kd7 {[%emt 0:08:55]} 16. e4 {[%emt 0:24:38][%cal Be3e4,Be4e5,Be5d6][%mdl 32] White is much more active. The black rooks are badly placed. White now steadily converts the win.} Be7 {[%emt 0:10:29]} 17. h4 {[%emt 0:06:03]} h5 {[%emt 0:05:16]} 18. Nd2 {[%emt 0:13:56]} Rh6 {[%emt 0:11:52]} 19. Bf4 {[%emt 0:02:51]} Rh7 {[%emt 0:02:08]} 20. Nc4 {[%emt 0:14:12]} g6 {[%emt 0:05:55]} (20... Rh8 $16) 21. e5 $18 {[%emt 0:00:44]} f5 {[%emt 0:00:54]} 22. Nd6 {[%emt 0:03:28]} Bxd6 {[%emt 0:01:38]} (22... Bd8 {was called for.} 23. f3 Rh8) 23. exd6 {[%emt 0:00:02]} c5 {[%emt 0:04:13]} 24. Be5 {[%emt 0:16:34]} ({Don't play} 24. dxc5 Kc6 25. Rhb1 Kxc5) 24... Kc6 {[%emt 0:02:15]} 25. Kd3 {[%emt 0:00:02]} Bd7 {[%emt 0:10:59]} (25... b5 $142 26. axb6 a5) 26. Kc4 {[%emt 0:01:57]} cxd4 {[%emt 0:01:49]} 27. cxd4 {[%emt 0:03:53][%cal Bc3d4,Bd4d5][%mdl 32] [#] Black must now prevent Rhc1.} Rc8 {[%emt 0:03:59]} 28. Rhc1 {[%emt 0:00:39][%cal Od4d5] White wants to mate with d5+!} b6 {[%emt 0:00:51]} (28... Be8 $18 29. Kd3+ Kd7) 29. a6 {[%emt 0:03:36] White mates.} b5+ {[%emt 0:08:32]} 30. Kb4+ {[%emt 0:00:24]} Kb6 {[%emt 0:06:27]} 31. d5 {[%emt 0:00:08]} Rxc1 {[%emt 0:00:04]} 32. Bd4+ {[%emt 0:00:05][%mdl 64] Skewer.  Weighted Error Value: White=0.06 (flawless) /Black=0.46} 1-0

[Event "55th Biel Festival MTO 2022"]
[Site "Biel"]
[Date "2022.07.18"]
[Round "5.30"]
[White "Collin Moritz Valentin"]
[Black "Sahithi Varshini M"]
[Result "0-1"]
[ECO "E52"]
[WhiteElo "2129"]
[BlackElo "2312"]
[Annotator "TA"]
[PlyCount "70"]
[EventDate "2022.07.13"]
[EventType "swiss"]
[EventCountry "SUI"]
[SourceTitle "playchess.com"]
[Source "ChessBase"]
[SourceQuality "1"]
[TimeControl "40/5400+30:1800+30"]

{[%evp 18,70,-2,-9,15,0,40,28,30,47,56,8,0,7,13,20,41,8,45,23,79,33,123,91,61,28,27,0,-9,-85,-94,-94,-84,-87,-83,-156,-156,-177,-179,-222,-215,-201,-202,-191,-178,-277,-283,-272,-283,-335,-280,-400,-395,-409,-401]} 1. d4 {[%emt 0:00:04]} Nf6 {[%emt 0:00:17]} 2. c4 {[%emt 0:00:05]} e6 {[%emt 0:00:06]} 3. Nc3 {[%emt 0:00:05]} Bb4 {[%emt 0:00:07]} 4. e3 {[%emt 0:00:09]} O-O {[%emt 0:00:12]} 5. Bd2 {[%emt 0:00:05]} b6 {[%emt 0:04:12]} 6. Nf3 {[%emt 0:00:22]} Bb7 {[%emt 0:00:06]} 7. Bd3 {[%emt 0:00:09]} d5 {[%emt 0:04:32]} 8. cxd5 {[%emt 0:01:34]} exd5 {[%emt 0:00:09]} 9. O-O {[%emt 0:00:08]} Nbd7 {[%emt 0:02:16]} 10. Rc1 {[%emt 0:02:14]} a6 {[%emt 0:02:47] E52: Nimzo-Indian: Rubinstein: 4...0-0 5 Nf3 d5 6 Bd3 b6.} 11. Ne5 {[%emt 0:05:54]} Bd6 {[%emt 0:06:49]} 12. f4 {[%emt 0:00:53]} c5 {[%emt 0:04:02] White has an edge.} 13. Qf3 {[%emt 0:06:46]} b5 {[%emt 0:07:51]} 14. a3 {[%emt 0:08:11]} (14. Be1 $14 {is superior.}) 14... cxd4 {[%emt 0:19:26]} 15. exd4 {[%emt 0:00:07]} Nb6 {[%emt 0:00:43]} 16. Be1 {[%emt 0:08:20]} Be7 {[%emt 0:09:00][%cal Of6e4]} 17. Bh4 {[%emt 0:09:04]} Rb8 {[%emt 0:06:57][%cal Of6e4] [#]} 18. Rfe1 $146 {[%emt 0:07:03] Against Ne4} ({Predecessor:} 18. Rce1 Nc4 19. Rf2 Ba8 20. Ng4 Rb6 21. Rfe2 Ne4 22. Bxe7 Qxe7 23. f5 Qd8 24. Nxe4 dxe4 25. Bxe4 Qxd4+ {½-½ (38) Smirnov,V (2356)-Zhigalko,A (2566) Minsk 2011}) 18... h6 {[%emt 0:05:49]} (18... Rc8 $11) 19. Rc2 {[%emt 0:11:03]} ({White should try} 19. Bb1 $16 {Hoping for Bxf6.} Qd6 20. Bxf6 Qxf6 21. Qd3) 19... Re8 {[%emt 0:01:42]} (19... Rc8 $14) 20. Rce2 {[%emt 0:00:58][%cal Oe5f7]} Ne4 {[%emt 0:02:47]} 21. Bxe7 {[%emt 0:02:40]} (21. Bf2 {keeps more tension.} Nxf2 22. Rxf2 Nc4 23. Bb1) 21... Rxe7 {[%emt 0:00:06]} 22. Nxd5 {[%emt 0:05:04]} Qxd5 {[%emt 0:00:48]} 23. Qxe4 {[%emt 0:01:12]} (23. Bxe4 $11 Qxd4+ 24. Kf1) 23... Qxe4 $17 {[%emt 0:00:05]} 24. Bxe4 {[%emt 0:00:17]} Bxe4 {[%emt 0:00:06]} 25. Rxe4 {[%emt 0:01:01] [#]} Rbe8 $1 {[%emt 0:00:06]} 26. g4 {[%emt 0:14:46]} (26. R4e3 $142) 26... f6 {[%emt 0:00:43]} 27. h4 {[%emt 0:02:01]} Nd5 {[%emt 0:02:16]} 28. Kg2 {[%emt 0:02:29]} fxe5 {[%emt 0:00:20]} 29. dxe5 {[%emt 0:00:31] [#]} Nf6 $1 {[%emt 0:03:54][%mdl 512]} 30. Rd4 {[%emt 0:05:51]} Nxg4 {[%emt 0:00:09] ...h5 is the strong threat.} 31. Kf3 {[%emt 0:01:25]} (31. h5 {keeps fighting.}) 31... h5 $19 {[%emt 0:00:07]} 32. Rd6 {[%emt 0:00:50]} Re6 {[%emt 0:02:01]} 33. Red1 {[%emt 0:00:50]} g6 {[%emt 0:00:22] White must now prevent ...Nh6.} 34. R1d2 {[%emt 0:01:43]} (34. Rxe6 $142 Rxe6 35. Rd8+ Kf7 36. Rd7+ Re7 37. Rd6) 34... Nh6 {[%emt 0:00:42]} 35. Ke4 {[%emt 0:00:54]} Nf5 {[%emt 0:00:07] Weighted Error Value: White=0.33/Black=0.19 (very precise)} 0-1

[Event "55th Biel Festival MTO 2022"]
[Site "Biel"]
[Date "2022.07.18"]
[Round "5.31"]
[White "Kolbus Dietmar"]
[Black "Popiol Michal"]
[Result "0-1"]
[ECO "E81"]
[WhiteElo "2285"]
[BlackElo "2118"]
[Annotator "TA"]
[PlyCount "84"]
[EventDate "2022.07.13"]
[EventType "swiss"]
[EventCountry "SUI"]
[SourceTitle "playchess.com"]
[Source "ChessBase"]
[SourceQuality "1"]
[TimeControl "40/5400+30:1800+30"]

{[%evp 14,84,32,32,28,31,35,17,18,14,14,17,38,-48,-57,-30,-65,-103,6,3,0,8,14,14,18,16,0,0,-12,-90,-72,-74,-69,-60,-83,-72,-62,-229,-224,-148,-122,-129,-106,-101,-108,-129,-122,-322,-315,-241,-258,-446,-453,-1010,-1006,-1646,-1692,-1659,-1597,-29987,-29988,-29988,-1059,-1051,0,-29988,-29989,-29992,-29993,-29993,-29992,-29992,-29993]} 1. c4 {[%emt 0:12:09]} Nf6 {[%emt 0:00:30]} 2. Nc3 {[%emt 0:00:01]} g6 {[%emt 0:00:10]} 3. e4 {[%emt 0:00:07]} d6 {[%emt 0:00:12]} 4. d4 {[%emt 0:00:03][%cal Bd2d4,Bd4d5][%mdl 32]} Bg7 {[%emt 0:00:09]} 5. Bd3 {[%emt 0:00:04]} O-O {[%emt 0:00:14]} 6. Nge2 {[%emt 0:00:11]} Nc6 {[%emt 0:00:12]} 7. f3 {[%emt 0:00:13]} Nd7 {[%emt 0:00:29]} 8. Be3 {[%emt 0:00:19]} e5 {[%emt 0:00:16][%cal Re5d4] E81: King's Indian: Sämisch: 6th move deviations (including 6 Be3 c6).} 9. d5 {[%emt 0:00:06]} Nd4 {[%emt 0:00:22]} 10. Nb5 {[%emt 0:00:05]} Nxb5 {[%emt 0:00:24] The position is equal.} (10... Qh4+ 11. Bf2 Qg5 12. Nbxd4 (12. Nexd4 exd4 13. O-O a6 $16) 12... exd4 13. O-O $16) 11. cxb5 {[%emt 0:00:11]} Nc5 {[%emt 0:00:04] [#]} 12. Bc2 $146 {[%emt 0:00:13]} ({Predecessor:} 12. O-O Nxd3 13. Qxd3 f5 14. exf5 gxf5 15. Nc3 Kh8 16. Rac1 Bd7 17. a4 Rg8 18. Qc4 {0-1 (52) Straka,J (2035)-Armani,G (2341) ICCF email 2018}) 12... f5 {[%emt 0:02:34]} 13. b4 {[%emt 0:00:22] [#]} (13. O-O $14) 13... fxe4 $1 $15 {[%emt 0:03:14]} 14. fxe4 {[%emt 0:00:51]} Nd7 {[%emt 0:04:33][%cal Bc5d7,Bd7f6,Bf6h5,Bh5f4][%mdl 32]} 15. Qd2 {[%emt 0:00:43]} Rf7 {[%emt 0:17:17]} (15... Qh4+ $1 $17 16. Ng3 h6) 16. O-O-O {[%emt 0:14:23]} Nf6 {[%emt 0:02:18]} 17. h3 {[%emt 0:03:12] Against Ng4} Bd7 {[%emt 0:00:20]} 18. Nc3 {[%emt 0:00:40]} a5 {[%emt 0:00:20]} 19. bxa6 {[%emt 0:06:20]} bxa6 {[%emt 0:01:35]} 20. Qd3 {[%emt 0:00:15]} Nh5 {[%emt 0:12:11]} 21. Rdf1 {[%emt 0:10:07]} (21. Kb2 $11 {keeps the balance.}) 21... Nf4 $17 {[%emt 0:23:25]} 22. Qd2 {[%emt 0:02:15]} Qb8 $36 {[%emt 0:00:27][%mdl 2048] Black is more active.} 23. a3 {[%emt 0:00:29]} a5 {[%emt 0:15:01]} 24. bxa5 {[%emt 0:00:35]} Rxa5 {[%emt 0:01:40]} 25. Nb1 {[%emt 0:01:33] [#]} (25. g3 $1 $15) 25... Qb5 $1 $19 {[%emt 0:00:09]} 26. Rf2 {[%emt 0:11:23]} Ra8 {[%emt 0:00:26] aiming for ...c5.} 27. g3 {[%emt 0:01:41]} Nh5 {[%emt 0:03:28] 0x0.0002df69a55fdp-1022s more active pieces. The white rooks are badly placed.} ({Weaker is} 27... Nxh3 28. Rxf7 Kxf7 29. Nc3) 28. Rxf7 {[%emt 0:03:03]} Kxf7 {[%emt 0:00:15]} 29. Bd3 {[%emt 0:00:02]} Qb3 {[%emt 0:02:31]} 30. g4 $2 {[%emt 0:06:30]} (30. Rg1 $17) 30... Nf4 $1 {[%emt 0:04:26] The board is on fire.} 31. Bc2 {[%emt 0:00:09]} Qc4 {[%emt 0:01:16] And now ...Ba4 would win.} 32. Bxf4 $2 {[%emt 0:02:12]} (32. Kb2) 32... exf4 {[%emt 0:01:59]} 33. Qxf4+ {[%emt 0:00:02]} (33. Qb4 $142 Qe2 34. Qd2) 33... Kg8 {[%emt 0:00:01] White must now prevent ...Ba4.} 34. Kd1 {[%emt 0:00:07]} Ba4 {[%emt 0:00:53]} 35. Bxa4 {[%emt 0:07:22]} Qxa4+ {[%emt 0:01:32]} ({Not} 35... Rxa4 36. Nd2 Qb5 37. Qf3 $17 (37. Rf1 $2 Rxa3 38. Ke1 h6 $19)) 36. Kc1 {[%emt 0:00:00]} Qc4+ {[%emt 0:02:20]} 37. Kd1 {[%emt 0:01:00]} Qd4+ {[%emt 0:00:22]} (37... Rb8 $142 38. Nd2 Qd3 39. Ke1 Bc3 40. Kf2 Bxd2 41. Qf6 Be3+ 42. Kg2 Bd4 43. Qe6+ Kh8 44. Qf6+ Bxf6 45. Rf1 Qxe4+ 46. Kg1 {[#]} Rb2 $1 47. Rf2 Qe1+ 48. Rf1 Qg3+ 49. Kh1 Qh2#) 38. Ke2 {[%emt 0:02:20]} Qc4+ {[%emt 0:00:25]} (38... Rf8 $19 39. Qe3 Qc4+ 40. Kd1 Qa2) 39. Kd1 $1 {[%emt 0:07:45]} Qd3+ {[%emt 0:00:21] Black mates.} 40. Nd2 {[%emt 0:00:49]} Rxa3 {[%emt 0:01:24][%cal Ba8a3,Ba3a1,Ba1h1][%mdl 32]} 41. Ke1 {[%emt 0:00:09]} Ra1+ {[%emt 0:01:20]} 42. Kf2 {[%emt 0:01:06]} Rxh1 {[%emt 0:00:09] Weighted Error Value: White=0.55/Black=0.46} 0-1

[Event "55th Biel Festival MTO 2022"]
[Site "Biel"]
[Date "2022.07.18"]
[Round "5.32"]
[White "Aydin Gulenay"]
[Black "Schwander Lukas"]
[Result "1-0"]
[ECO "C48"]
[WhiteElo "2100"]
[BlackElo "2274"]
[Annotator "TA"]
[PlyCount "123"]
[EventDate "2022.07.13"]
[EventType "swiss"]
[EventCountry "SUI"]
[SourceTitle "playchess.com"]
[Source "ChessBase"]
[SourceQuality "1"]
[TimeControl "40/5400+30:1800+30"]

{[%evp 9,123,0,0,0,0,0,0,0,0,0,0,0,0,0,0,0,0,0,42,54,31,-89,-110,-161,-19,-39,-30,-35,0,0,0,-69,12,0,152,127,261,245,247,240,261,264,300,33,33,37,37,33,36,36,33,38,41,29,93,89,87,62,88,31,22,29,37,0,105,97,101,91,131,0,89,83,81,85,122,149,197,115,191,144,153,113,164,44,385,101,152,160,164,0,0,0,204,210,197,202,474,420,498,478,457,383,349,357,457,451,5185,5173,29973,29975,29974,29976,29994,29995,29995,29996]} 1. e4 {[%emt 0:00:04]} e5 {[%emt 0:00:24]} 2. Nf3 {[%emt 0:00:11]} Nc6 {[%emt 0:00:05]} 3. Nc3 {[%emt 0:00:09]} Nf6 {[%emt 0:00:19]} 4. Bb5 {[%emt 0:00:12]} Nd4 {[%emt 0:00:55]} 5. O-O {[%emt 0:03:01]} c6 {[%emt 0:01:39]} 6. Bd3 {[%emt 0:01:58] C48: Four Knights: 4 Bb5, replies other than 4...Bb4.} Nxf3+ {[%emt 0:01:42]} 7. Qxf3 {[%emt 0:00:03]} d6 {[%emt 0:01:16]} 8. Be2 {[%emt 0:01:37] The position is equal.} g6 {[%emt 0:00:31]} 9. d3 {[%emt 0:02:29]} Bg7 {[%emt 0:00:19]} 10. Qg3 {[%emt 0:11:09]} h5 {[%emt 0:07:51][%cal Bh7h5,Bh5h4][%mdl 32] [#]} 11. f4 $146 {[%emt 0:18:45]} ({Predecessor:} 11. h4 Ng4 12. Nd1 Bf6 13. Ne3 Bxh4 14. Qf3 Bg5 15. g3 Nxe3 16. fxe3 Qe7 17. Qf2 {0-1 (28) Abdusattorov,N (2627)-So,W (2770) Chess.com INT 2020}) 11... Qb6+ {[%emt 0:09:29]} 12. Kh1 {[%emt 0:12:54]} h4 {[%emt 0:01:20]} 13. Qe1 {[%emt 0:01:26]} Nh5 {[%emt 0:02:12]} 14. Bxh5 {[%emt 0:06:38]} Rxh5 {[%emt 0:00:06]} 15. Be3 {[%emt 0:11:35]} (15. f5 $14 {stays ahead.}) 15... Qxb2 $17 {[%emt 0:12:10]} 16. fxe5 {[%emt 0:03:17]} (16. f5 $17) 16... Qa3 {[%emt 0:23:26]} ({Not} 16... Qxc2 17. Rd1 Qb2 18. Rb1 $11) (16... h3 $1 $19 {[%cal Rh3g2]} 17. g4 Rh7) 17. d4 {[%emt 0:03:47][%cal Oe1f2]} dxe5 {[%emt 0:00:55]} 18. d5 {[%emt 0:00:29]} Bd7 {[%emt 0:02:11]} (18... h3 $5 {[%cal Rh3g2]} 19. g3 Bd7 $15) 19. Rb1 $36 {[%emt 0:02:03][%mdl 2048] White is pushing.} b6 {[%emt 0:00:44]} 20. Rb3 {[%emt 0:06:57]} (20. dxc6 $11 Bxc6 21. Qe2) 20... Qe7 {[%emt 0:00:08]} ({Black should try} 20... Qa6 $1 $15) 21. a4 {[%emt 0:00:04][%cal Ba2a4,Ba4a5][%mdl 32]} Qd6 $2 {[%emt 0:04:45]} (21... h3 $11 22. g3 Rh7) 22. a5 $16 {[%emt 0:01:39]} ({Don't do} 22. Qf2 $6 f5 $14) 22... c5 {[%emt 0:01:20]} (22... b5 $16 {was worth a try.}) 23. Qf2 $18 {[%emt 0:03:38]} f5 {[%emt 0:00:35]} 24. axb6 $1 {[%emt 0:01:39]} axb6 {[%emt 0:01:19]} 25. Rfb1 $1 {[%emt 0:00:01]} f4 {[%emt 0:01:24]} 26. Bd2 {[%emt 0:00:01]} ({White has to play} 26. Rxb6 $18 Qc7 27. Rb7) 26... Rb8 $1 $14 {[%emt 0:01:08]} 27. Nb5 {[%emt 0:01:16]} Bxb5 {[%emt 0:00:26]} 28. Rxb5 {[%emt 0:00:01][%cal Od2a5] Black must now prevent Ba5!} Bf6 $1 {[%emt 0:00:14]} 29. c4 {[%emt 0:03:18][%mdl 1024] White has compensation.} Bd8 {[%emt 0:00:46]} 30. Ra1 {[%emt 0:00:18]} Rh7 {[%emt 0:02:11]} 31. Qf3 {[%emt 0:00:32]} Qd7 {[%emt 0:03:41]} (31... Kf8 $11 {keeps the balance.}) 32. Bc3 $16 {[%emt 0:00:28]} Qd6 {[%emt 0:06:21]} 33. Qg4 {[%emt 0:01:31]} Rg7 {[%emt 0:02:53]} 34. Be1 {[%emt 0:00:59] White is more active.} (34. Rbb1 $16) 34... Qd7 $14 {[%emt 0:01:23]} 35. Qf3 {[%emt 0:01:05]} Rh7 {[%emt 0:04:58]} 36. Bc3 {[%emt 0:00:12]} Rh5 {[%emt 0:01:39]} (36... Qd6 $1 $11) 37. h3 {[%emt 0:01:30]} Rb7 {[%emt 0:00:25]} 38. Kh2 {[%emt 0:01:34]} Rb8 {[%emt 0:03:08]} 39. Kh1 {[%emt 0:00:21]} (39. Rb2 $16) 39... Rg5 {[%emt 0:00:41]} (39... Rb7 $1 $11 {remains equal.}) 40. Be1 $16 {[%emt 0:00:05]} Rh5 {[%emt 0:00:07]} 41. Bf2 {[%emt 0:12:55] And now Bxc5 would win.} Rb7 {[%emt 0:03:58]} 42. Kh2 $1 {[%emt 0:02:07]} Rh6 {[%emt 0:20:37]} (42... Ra7 $16 43. Rxa7 Qxa7) 43. Qc3 {[%emt 0:03:52]} (43. Rab1 $1 $18) 43... Rh5 {[%emt 0:01:00]} (43... Qg7 $16) 44. Rb3 {[%emt 0:02:28]} (44. Rab1 $18) 44... Qd6 {[%emt 0:02:36]} 45. Qf3 {[%emt 0:02:31]} Rhh7 {[%emt 0:04:34]} (45... Kf8 $16) 46. Rb5 {[%emt 0:01:45]} (46. Qg4 $18) 46... Rbg7 $2 {[%emt 0:00:50][%mdl 8192] [#]} ({Better is} 46... Ra7 $14 47. Rbb1 Rhg7) 47. Ra8 $2 {[%emt 0:00:58]} (47. Ra6 $1 $18 {and the rest is easy.}) 47... Ra7 {[%emt 0:00:36]} (47... Qf6 $142) 48. Rc8 {[%emt 0:03:09]} Rhc7 {[%emt 0:00:38]} 49. Rxc7 {[%emt 0:01:12]} (49. Rb8 $18 Rcb7 50. Rxb7 Rxb7 {[#]} 51. Bxc5 $1 {[%mdl 512]}) 49... Rxc7 $11 {[%emt 0:00:06]} 50. Qg4 {[%emt 0:00:25]} Ra7 $2 {[%emt 0:00:59]} (50... Qf6 $11) 51. Bxh4 $18 {[%emt 0:01:41]} Bxh4 {[%emt 0:00:33]} 52. Qxh4 {[%emt 0:00:03][%mdl 4096] Endgame Strongly threatening Qh8+. KQR-KQR} Ra4 $2 {[%emt 0:01:24]} (52... Ra3 {was necessary.} 53. Qh8+ Kd7 54. Qg7+ Kc8) 53. Qh8+ {[%emt 0:00:28]} Kd7 {[%emt 0:00:05]} 54. Qg7+ {[%emt 0:00:36]} Kc8 {[%emt 0:00:28]} 55. Qg8+ {[%emt 0:00:26]} Kb7 {[%emt 0:00:48]} 56. Qf7+ {[%emt 0:00:13]} Qc7 {[%emt 0:01:20]} 57. Qe6 {[%emt 0:01:06]} Ra8 {[%emt 0:00:36]} (57... f3 $142 58. gxf3 Ra2+ 59. Kg3 g5) 58. d6 {[%emt 0:00:30][%cal Bd5d6,Bd6d7][%mdl 32]} Qc6 {[%emt 0:00:13]} 59. Qe7+ {[%emt 0:00:37] White mates.} Kc8 {[%emt 0:00:40] [#]} 60. Rxb6 $3 {[%emt 0:00:52][%mdl 512]} Qd7 {[%emt 0:00:05]} (60... Qxb6 61. d7+) 61. Qf8+ {[%emt 0:00:15]} Qd8 {[%emt 0:00:03]} 62. d7+ {[%emt 0:00:07] Weighted Error Value: White=0.36/Black=0.61} 1-0

[Event "55th Biel Festival MTO 2022"]
[Site "Biel"]
[Date "2022.07.18"]
[Round "5.33"]
[White "Marentini, Marcel"]
[Black "Schnepp Gunnar"]
[Result "1/2-1/2"]
[ECO "A13"]
[WhiteElo "2053"]
[BlackElo "2265"]
[Annotator "TA"]
[PlyCount "50"]
[EventDate "2022.07.13"]
[EventType "swiss"]
[EventCountry "SUI"]
[SourceTitle "playchess.com"]
[Source "ChessBase"]
[SourceQuality "1"]
[TimeControl "40/5400+30:1800+30"]

{[%evp 11,50,0,-6,0,-3,-12,0,-5,2,0,4,4,1,-13,-11,-36,-10,-33,0,-26,-14,-26,-18,-29,-10,-1,27,30,24,2,5,9,11,0,0,0,13,18,11,-9,-4]} 1. Nf3 {[%emt 0:00:16]} Nf6 {[%emt 0:00:05]} 2. c4 {[%emt 0:00:24]} e6 {[%emt 0:00:08]} 3. g3 {[%emt 0:01:17]} d5 {[%emt 0:00:07]} 4. Bg2 {[%emt 0:00:11]} dxc4 {[%emt 0:00:25]} 5. Na3 {[%emt 0:01:08]} Bxa3 {[%emt 0:25:47]} 6. bxa3 {[%emt 0:00:19]} O-O {[%emt 0:02:07]} 7. Qc2 {[%emt 0:01:04] A13: English Opening: 1...e6.} Nbd7 {[%emt 0:11:54]} 8. Bb2 {[%emt 0:02:35] Inhibits e5.} Rb8 {[%emt 0:07:16]} 9. Qxc4 {[%emt 0:07:50]} b5 {[%emt 0:00:31]} 10. Qc2 {[%emt 0:00:27]} Bb7 {[%emt 0:01:33]} 11. O-O {[%emt 0:01:30]} c5 {[%emt 0:01:16] [#]} 12. Rfe1 $146 {[%emt 0:06:12]} ({Predecessor:} 12. Rfd1 Qb6 13. Ne5 Bxg2 14. Nxd7 Nxd7 15. Kxg2 e5 16. Qf5 Qd6 17. Kg1 f6 18. h4 {½-½ (126) Kauko,J (2265)-Niemi,K (2306) Finland 2019}) 12... Qa5 {[%emt 0:09:51]} 13. Rac1 {[%emt 0:11:50]} Rbc8 {[%emt 0:02:29]} 14. d3 {[%emt 0:05:54][%cal Oa3a4]} h6 {[%emt 0:04:46]} 15. Qb1 {[%emt 0:04:05]} Nd5 {[%emt 0:07:50]} 16. e4 {[%emt 0:16:46]} N5b6 {[%emt 0:01:23]} 17. Bc3 {[%emt 0:00:35] A strong pair of Bishops.} Qxa3 {[%emt 0:04:02]} 18. Qxb5 {[%emt 0:00:35]} Ba6 {[%emt 0:00:07]} (18... Qxa2 $5 {[%cal Rb7a6]} 19. Bf1 Bc6 $11) 19. Qb1 {[%emt 0:01:30]} Na4 {[%emt 0:00:22]} 20. Qa1 {[%emt 0:00:53]} Nxc3 {[%emt 0:02:02] The position is equal.} 21. Rxc3 {[%emt 0:01:02]} Qa4 {[%emt 0:01:54]} 22. Rec1 {[%emt 0:05:01]} c4 {[%emt 0:00:46]} 23. dxc4 {[%emt 0:08:17]} Rxc4 {[%emt 0:00:12]} 24. Rxc4 {[%emt 0:00:31]} Bxc4 {[%emt 0:00:02]} 25. a3 {[%emt 0:01:18]} Nb6 {[%emt 0:05:50] An interesting draw.  Weighted Error Value: White=0.10 (very precise) /Black=0.09 (flawless)} 1/2-1/2

[Event "55th Biel Festival MTO 2022"]
[Site "Biel"]
[Date "2022.07.18"]
[Round "5.34"]
[White "Sadeghi, Hassan Roger"]
[Black "Dishman Stephen"]
[Result "1/2-1/2"]
[ECO "A03"]
[WhiteElo "2068"]
[BlackElo "2252"]
[Annotator "TA"]
[PlyCount "42"]
[EventDate "2022.07.13"]
[EventType "swiss"]
[EventCountry "SUI"]
[SourceTitle "playchess.com"]
[Source "ChessBase"]
[SourceQuality "1"]
[TimeControl "40/5400+30:1800+30"]

{[%evp 9,42,-9,11,-1,0,-6,14,17,18,0,0,12,42,53,54,8,40,23,52,18,67,47,50,27,18,17,23,21,20,12,35,29,68,74,233]} 1. f4 {[%emt 0:00:11]} d5 {[%emt 0:00:32]} 2. Nf3 {[%emt 0:00:12]} g6 {[%emt 0:00:10]} 3. g3 {[%emt 0:00:39]} Bg7 {[%emt 0:00:07]} 4. Bg2 {[%emt 0:00:11]} Nh6 {[%emt 0:00:18]} 5. d3 {[%emt 0:01:12]} d4 {[%emt 0:00:16]} 6. c3 {[%emt 0:00:45] A03: Bird's Opening with 1...d5.} c5 {[%emt 0:00:33]} 7. e4 {[%emt 0:00:57]} dxe3 {[%emt 0:00:55]} 8. Bxe3 {[%emt 0:00:12] The position is equal.} Nd7 {[%emt 0:03:00]} 9. d4 {[%emt 0:02:34]} Nf5 {[%emt 0:11:16]} 10. Bf2 {[%emt 0:01:34]} Qc7 {[%emt 0:02:02]} 11. O-O {[%emt 0:01:17]} O-O {[%emt 0:01:42]} 12. Na3 {[%emt 0:01:14]} (12. Re1 $14) 12... a6 {[%emt 0:03:00]} 13. Nc2 {[%emt 0:05:36] [#]} Rb8 $146 {[%emt 0:08:43]} ({Predecessor:} 13... Nf6 14. Ne5 cxd4 15. Nxd4 Nxd4 16. Qxd4 Nd7 17. Rfe1 Nxe5 18. fxe5 Be6 19. Qb4 a5 {½-½ (40) Cavaletto,M (2103)-Malakhatko,V (2542) Zuerich 2013}) 14. Qe2 {[%emt 0:05:27]} Re8 {[%emt 0:07:07]} (14... b5 $11) 15. g4 $14 {[%emt 0:12:50]} Nd6 {[%emt 0:01:15]} 16. Bg3 {[%emt 0:06:27][%cal Of4f5]} cxd4 {[%emt 0:06:39]} 17. Nfxd4 {[%emt 0:03:49]} e5 {[%emt 0:12:52]} 18. fxe5 {[%emt 0:01:31]} Nxe5 {[%emt 0:00:09]} 19. h3 {[%emt 0:00:45]} Bd7 {[%emt 0:02:13][%cal Oe5g4]} 20. Qf2 {[%emt 0:01:27]} Qc5 {[%emt 0:08:55]} 21. Rad1 {[%emt 0:05:48] Against Nd3} f6 $2 {[%emt 0:10:16] Weighted Error Value: White=0.11 (very precise) /Black=0.14 (very precise)} (21... Rbd8 $16) 1/2-1/2